[Event "African Championship (W)"]
[Site "followchess.com"]
[Date "2021.05.25"]
[Round "7"]
[White "Ndirangu, Joyce Nyaruai"]
[Black "Moaataz, Ayah"]
[Result "0-1"]
[WhiteElo "1659"]
[BlackElo "2028"]
[ECO "D00"]
[WhiteFed "KEN"]
[BlackFed "EGY"]
[FCGameId "1807454606"]
[WhiteFideId "10802886"]
[BlackFideId "10615873"]
[TimeControl "7200+30"]

1. d4 {[%clk 1:30:51]} d5 {[%clk 1:30:57]} 2. Bf4 {[%clk 1:31:17]} c5 
{[%clk 1:31:19]} 3. e3 {[%clk 1:31:25]} Nc6 {[%clk 1:31:42]} 4. c3 
{[%clk 1:31:43]} Nf6 {[%clk 1:32:00]} 5. Bd3 {[%clk 1:31:58]} Qb6 
{[%clk 1:28:06]} 6. Qc1 {[%clk 1:28:59]} Bg4 {[%clk 1:27:10]} 7. Nd2 
{[%clk 1:28:58]} Rc8 {[%clk 1:27:23]} 8. Ngf3 {[%clk 1:28:22]} cxd4 
{[%clk 1:25:17]} 9. exd4 {[%clk 1:28:28]} Nb4 {[%clk 1:24:27]} 10. Be2 
{[%clk 1:22:52]} Bf5 {[%clk 1:24:22]} 11. O-O {[%clk 1:22:29]} Bd3 
{[%clk 1:19:18]} 12. Qd1 {[%clk 1:00:55]} Qa6 {[%clk 1:19:14]} 13. Bxd3 
{[%clk 1:01:05]} Nxd3 {[%clk 1:19:37]} 14. Bg3 {[%clk 1:01:31]} Nxb2 
{[%clk 1:19:43]} 15. Qb3 {[%clk 1:01:55]} Na4 {[%clk 1:20:01]} 16. Rfc1 
{[%clk 1:01:19]} g6 {[%clk 1:04:33]} 17. c4 {[%clk 0:53:13]} Bh6 
{[%clk 1:04:35]} 18. cxd5 {[%clk 0:46:54]} O-O {[%clk 1:04:27]} 19. Rab1 
{[%clk 0:46:24]} b5 {[%clk 0:58:01]} 20. Re1 {[%clk 0:46:01]} Nc3 
{[%clk 0:55:41]} 21. Ra1 {[%clk 0:34:32]} Nfxd5 {[%clk 0:54:20]} 22. Ne4 
{[%clk 0:33:44]} Nxe4 {[%clk 0:54:12]} 23. Rxe4 {[%clk 0:34:11]} e6 
{[%clk 0:52:55]} 24. h4 {[%clk 0:26:10]} Rc3 {[%clk 0:51:57]} 25. Qb2 
{[%clk 0:26:13]} Rfc8 {[%clk 0:51:58]} 26. Ng5 {[%clk 0:23:23]} Rc2 
{[%clk 0:49:40]} 27. Qb1 {[%clk 0:21:23]} Qa4 {[%clk 0:45:58]} 28. Qe1 
{[%clk 0:19:42]} Qc4 {[%clk 0:44:26]} 29. Rxe6 {[%clk 0:19:04]} Qxd4 30. Rd1 
{[%clk 0:15:50]} Qxd1 {[%clk 0:15:22]} 31. Re8+ {[%clk 0:15:07]} Bf8 
{[%clk 0:12:59]} 32. Qxd1 {[%clk 0:15:31]} Rc1 {[%clk 0:13:25]} 33. Kh2 
{[%clk 0:15:04]} Rxd1 {[%clk 0:13:23]} 34. Rxc8 {[%clk 0:15:28]} Nb6 
{[%clk 0:13:14]} 35. Rb8 {[%clk 0:12:37]} Rd5 {[%clk 0:08:28]} 36. Ne4 
{[%clk 0:12:13]} Kg7 {[%clk 0:07:00]} 37. Rb7 Nc8 {[%clk 0:03:06]} 38. Nc3 
{[%clk 0:10:30]} Rc5 {[%clk 0:02:44]} 39. Nxb5 {[%clk 0:10:24]} a6 
{[%clk 0:02:31]} 40. Nd4 {[%clk 0:40:32]} Kf6 {[%clk 0:31:46]} 41. Nb3 
{[%clk 0:37:53]} Rd5 {[%clk 0:30:38]} 42. Rb8 {[%clk 0:37:40]} Rd8 
{[%clk 0:29:27]} 43. Ra8 {[%clk 0:38:02]} Bb4 {[%clk 0:28:21]} 44. Rxa6+ 
{[%clk 0:38:15]} Ke7 {[%clk 0:28:45]} 45. Rc6 {[%clk 0:35:20]} Nd6 
{[%clk 0:24:24]} 46. Nc5 {[%clk 0:30:17]} Nf5 {[%clk 0:21:21]} 47. Be5 
{[%clk 0:25:19]} Bxc5 {[%clk 0:21:12]} 48. Rxc5 {[%clk 0:25:40]} Rd2 
{[%clk 0:20:52]} 49. a4 {[%clk 0:20:20]} Rxf2 {[%clk 0:20:22]} 50. Kg1 
{[%clk 0:20:11]} Ra2 {[%clk 0:20:13]} 51. a5 {[%clk 0:19:41]} Nxh4 
{[%clk 0:18:33]} 52. Bc7 {[%clk 0:19:56]} Rxg2+ {[%clk 0:16:40]} 53. Kf1 
{[%clk 0:20:03]} Ra2 {[%clk 0:16:37]} 54. Rd5 {[%clk 0:18:59]} Nf5 
{[%clk 0:16:41]} 55. Rd3 {[%clk 0:19:15]} h5 {[%clk 0:16:18]} 56. Ke1 
{[%clk 0:17:26]} h4 {[%clk 0:16:11]} 57. Kd1 {[%clk 0:17:45]} g5 
{[%clk 0:16:01]} 58. Kc1 {[%clk 0:16:44]} g4 {[%clk 0:15:26]} 59. Kb1 
{[%clk 0:16:09]} Ra4 {[%clk 0:15:26]} 60. Kb2 {[%clk 0:16:25]} g3 
{[%clk 0:14:18]} 61. Rd1 {[%clk 0:06:30]} Rc4 {[%clk 0:09:59]} 62. Bd8+ 
{[%clk 0:05:46]} Ke6 {[%clk 0:09:41]} 63. Kb3 {[%clk 0:06:11]} Rc8 
{[%clk 0:09:38]} 64. Kb4 {[%clk 0:03:43]} h3 {[%clk 0:08:41]} 65. Bb6 
{[%clk 0:03:20]} h2 {[%clk 0:08:41]} 66. Rh1 {[%clk 0:03:05]} Rh8 
{[%clk 0:07:15]} 67. a6 {[%clk 0:01:58]} g2 {[%clk 0:07:10]} 68. Re1+ 
{[%clk 0:00:42]} Kd7 {[%clk 0:07:23]} 69. Rd1+ {[%clk 0:00:40]} Kc6 
{[%clk 0:07:17]} 70. Bd8 {[%clk 0:00:56]} Rxd8 {[%clk 0:07:32]} 71. Rxd8 
{[%clk 0:01:23]} g1=Q {[%clk 0:07:55]} 72. a7 {[%clk 0:00:37]} Qb6+ 
{[%clk 0:08:15]} 73. Ka4 {[%clk 0:00:50]} Qxd8 {[%clk 0:08:35]} 0-1

[Event "African Championship (W)"]
[Site "followchess.com"]
[Date "2021.05.25"]
[Round "7"]
[White "Ogbiyoyo, Perpetual Eloho"]
[Black "Shriyan santosh Priyasha"]
[Result "0-1"]
[WhiteElo "1880"]
[BlackElo "1285"]
[ECO "B06"]
[WhiteFed "NGR"]
[BlackFed "MAW"]
[FCGameId "346825600"]
[WhiteFideId "8509050"]
[BlackFideId "20505353"]
[TimeControl "7200+30"]

1. e4 {[%clk 1:30:08]} g6 {[%clk 1:30:39]} 2. f4 {[%clk 1:30:05]} Bg7 
{[%clk 1:30:48]} 3. Nf3 {[%clk 1:30:20]} d6 {[%clk 1:30:57]} 4. Bc4 
{[%clk 1:30:08]} e6 {[%clk 1:30:59]} 5. Nc3 {[%clk 1:29:51]} a6 {[%clk 1:30:54]} 
6. a4 {[%clk 1:29:59]} b6 {[%clk 1:29:12]} 7. O-O {[%clk 1:29:38]} Ne7 
{[%clk 1:29:12]} 8. d3 {[%clk 1:28:48]} O-O {[%clk 1:29:06]} 9. Qe1 
{[%clk 1:28:59]} Bb7 {[%clk 1:27:14]} 10. Qh4 {[%clk 1:28:42]} d5 
{[%clk 1:26:16]} 11. Bb3 {[%clk 1:28:13]} Nd7 {[%clk 1:22:05]} 12. f5 
{[%clk 1:21:46]} exf5 {[%clk 1:10:35]} 13. Bh6 {[%clk 1:08:24]} Nc5 
{[%clk 1:05:39]} 14. Ng5 {[%clk 1:05:55]} f6 {[%clk 0:41:57]} 15. Bxg7 
{[%clk 0:50:12]} fxg5 {[%clk 0:41:15]} 16. Qh6 {[%clk 0:50:05]} Rf7 
{[%clk 0:40:02]} 17. Be5 {[%clk 0:50:15]} Nxb3 {[%clk 0:39:19]} 18. cxb3 
{[%clk 0:39:56]} Nc6 {[%clk 0:39:37]} 19. Bg3 {[%clk 0:39:54]} f4 
{[%clk 0:38:43]} 20. Nxd5 {[%clk 0:31:08]} Nd4 {[%clk 0:34:59]} 21. Nc3 
{[%clk 0:25:52]} Nxb3 {[%clk 0:28:23]} 22. Rad1 {[%clk 0:25:56]} Nd4 
{[%clk 0:24:02]} 23. h4 {[%clk 0:23:58]} Nc2 {[%clk 0:19:49]} 24. Bf2 
{[%clk 0:20:47]} gxh4 {[%clk 0:17:48]} 25. Bxh4 {[%clk 0:20:27]} Qf8 
{[%clk 0:17:01]} 26. Qxf8+ {[%clk 0:19:25]} Raxf8 {[%clk 0:16:49]} 27. Rd2 
{[%clk 0:19:14]} Ne3 {[%clk 0:14:01]} 28. Re1 {[%clk 0:18:04]} Re8 
{[%clk 0:12:08]} 29. g3 {[%clk 0:17:10]} Ng4 {[%clk 0:11:20]} 30. gxf4 
{[%clk 0:16:27]} Rxf4 {[%clk 0:10:56]} 31. Bg3 {[%clk 0:16:44]} Rf7 
{[%clk 0:11:19]} 32. d4 {[%clk 0:16:37]} Nf6 {[%clk 0:10:10]} 33. d5 
{[%clk 0:15:53]} Rd7 {[%clk 0:09:06]} 34. Kh2 {[%clk 0:13:49]} Ng4+ 
{[%clk 0:08:39]} 35. Kh3 {[%clk 0:13:49]} Ne5 {[%clk 0:08:04]} 36. Rf1 
{[%clk 0:13:47]} Nc4 {[%clk 0:06:32]} 37. Rdf2 {[%clk 0:11:52]} Ne3 
{[%clk 0:04:18]} 38. Re1 {[%clk 0:12:09]} Nc4 {[%clk 0:04:34]} 39. b3 
{[%clk 0:09:57]} Na5 {[%clk 0:04:07]} 40. Rb2 {[%clk 0:40:07]} Kg7 
{[%clk 0:32:30]} 41. Kg4 {[%clk 0:40:16]} h5+ {[%clk 0:31:25]} 42. Kg5 
{[%clk 0:40:20]} Rf8 {[%clk 0:31:00]} 43. Re3 {[%clk 0:38:06]} Re8 
{[%clk 0:30:22]} 44. Bf4 {[%clk 0:37:37]} Kh7 {[%clk 0:24:35]} 45. Ne2 
{[%clk 0:36:18]} Rde7 {[%clk 0:24:42]} 46. Nc3 {[%clk 0:35:46]} Rd7 
{[%clk 0:24:35]} 47. Nb1 {[%clk 0:30:40]} Rf8 {[%clk 0:24:19]} 48. Rc2 
{[%clk 0:24:38]} Bxd5 {[%clk 0:19:19]} 49. Rxc7 {[%clk 0:23:54]} Bc6 
{[%clk 0:18:59]} 50. Rxd7+ {[%clk 0:20:41]} Bxd7 {[%clk 0:19:23]} 51. Bc7 
{[%clk 0:20:40]} Be6 {[%clk 0:16:53]} 52. Nd2 {[%clk 0:20:11]} Nc6 
{[%clk 0:13:01]} 53. Bxb6 {[%clk 0:19:44]} Ne5 {[%clk 0:11:44]} 54. Bc5 
{[%clk 0:17:27]} Rf2 {[%clk 0:11:10]} 55. Nb1 {[%clk 0:15:28]} Rg2+ 
{[%clk 0:09:29]} 56. Kf6 {[%clk 0:13:27]} Ng4+ {[%clk 0:09:41]} 57. Kxe6 
{[%clk 0:13:51]} Nxe3 {[%clk 0:10:04]} 58. Bxe3 {[%clk 0:14:16]} Re2 
{[%clk 0:10:28]} 59. Bc5 {[%clk 0:13:47]} Rxe4+ {[%clk 0:10:49]} 60. Kd5 Rf4 
{[%clk 0:08:31]} 61. Be3 {[%clk 0:13:06]} Rb4 {[%clk 0:08:39]} 62. Nd2 
{[%clk 0:13:24]} h4 {[%clk 0:07:23]} 63. Kc5 {[%clk 0:11:01]} Rg4 
{[%clk 0:05:58]} 64. Nf1 {[%clk 0:05:39]} h3 {[%clk 0:04:52]} 65. Nh2 
{[%clk 0:04:55]} Rg2 {[%clk 0:04:22]} 66. Bf4 {[%clk 0:05:04]} g5 
{[%clk 0:04:18]} 67. Bd6 {[%clk 0:05:14]} g4 {[%clk 0:04:35]} 68. Nxg4 
{[%clk 0:04:52]} Rxg4 {[%clk 0:04:54]} 69. b4 {[%clk 0:05:14]} Kg8 
{[%clk 0:03:20]} 70. a5 {[%clk 0:05:33]} Kf7 {[%clk 0:02:57]} 71. Kb6 
{[%clk 0:03:54]} Rg6 {[%clk 0:03:12]} 0-1

[Event "African Championship (W)"]
[Site "followchess.com"]
[Date "2021.05.25"]
[Round "7"]
[White "Marape, Naledi"]
[Black "Marochkina, Nadezhda Valerevna"]
[Result "0-1"]
[WhiteElo "1717"]
[BlackElo "1639"]
[ECO "B13"]
[WhiteFed "BOT"]
[BlackFed "SEN"]
[FCGameId "-1561501582"]
[WhiteFideId "11310880"]
[BlackFideId "19900490"]
[TimeControl "7200+30"]

1. e4 c6 {[%clk 1:30:54]} 2. d4 {[%clk 1:31:18]} d5 {[%clk 1:31:18]} 3. exd5 
{[%clk 1:31:33]} cxd5 {[%clk 1:31:43]} 4. c3 {[%clk 1:32:00]} e6 
{[%clk 1:32:06]} 5. Nf3 {[%clk 1:32:26]} Nf6 {[%clk 1:32:02]} 6. Bd3 
{[%clk 1:32:34]} Bd6 {[%clk 1:31:55]} 7. O-O {[%clk 1:32:41]} O-O 
{[%clk 1:31:53]} 8. Bg5 {[%clk 1:30:58]} Nbd7 {[%clk 1:31:50]} 9. Re1 
{[%clk 1:30:54]} h6 {[%clk 1:31:35]} 10. Bc1 {[%clk 1:29:49]} a6 
{[%clk 1:31:11]} 11. Nbd2 {[%clk 1:27:36]} b5 {[%clk 1:31:29]} 12. Ne5 
{[%clk 1:27:56]} Bb7 {[%clk 1:30:58]} 13. Ndf3 {[%clk 1:28:05]} Ne4 
{[%clk 1:29:51]} 14. Nxd7 {[%clk 1:27:00]} Qxd7 {[%clk 1:30:11]} 15. Ne5 
{[%clk 1:27:13]} Qd8 {[%clk 1:29:03]} 16. Re3 {[%clk 1:24:52]} Bxe5 
{[%clk 1:27:08]} 17. dxe5 {[%clk 1:24:32]} d4 {[%clk 1:25:27]} 18. Rxe4 
{[%clk 1:20:18]} Bxe4 {[%clk 1:25:45]} 19. Bxe4 {[%clk 1:20:42]} dxc3 
{[%clk 1:26:03]} 20. Qe2 {[%clk 1:15:24]} cxb2 {[%clk 1:23:08]} 21. Bxb2 
{[%clk 1:15:43]} Rb8 {[%clk 1:23:13]} 22. g3 {[%clk 1:14:51]} Qa5 
{[%clk 1:23:03]} 23. Qe1 {[%clk 1:12:11]} Qxe1+ {[%clk 1:16:28]} 24. Rxe1 
{[%clk 1:12:34]} Rfd8 {[%clk 1:16:42]} 25. Kf1 {[%clk 1:10:30]} b4 
{[%clk 1:15:16]} 26. Ke2 {[%clk 0:59:43]} b3 {[%clk 1:10:11]} 27. a3 
{[%clk 1:00:08]} a5 {[%clk 1:09:03]} 28. Rd1 {[%clk 0:59:32]} Rdc8 
{[%clk 1:08:23]} 29. Rd4 {[%clk 0:52:32]} Rc5 {[%clk 1:05:34]} 30. f4 
{[%clk 0:52:24]} g6 {[%clk 1:05:47]} 31. Kd2 {[%clk 0:50:56]} Rbc8 
{[%clk 1:05:21]} 32. Ke3 {[%clk 0:50:49]} h5 {[%clk 1:04:16]} 33. Rd2 
{[%clk 0:45:36]} Rc4 {[%clk 0:58:59]} 34. Bb1 {[%clk 0:44:06]} Rb8 
{[%clk 0:56:23]} 35. Rd3 {[%clk 0:39:03]} Rc7 {[%clk 0:49:26]} 36. Rc3 
{[%clk 0:31:51]} Ra7 {[%clk 0:46:10]} 37. Rc5 {[%clk 0:26:47]} Rd8 
{[%clk 0:43:20]} 38. Bd3 {[%clk 0:24:37]} Rad7 {[%clk 0:35:21]} 39. Rc3 
{[%clk 0:21:36]} a4 {[%clk 0:34:10]} 40. h3 {[%clk 0:48:46]} Kg7 
{[%clk 1:02:10]} 41. Be4 {[%clk 0:44:04]} Rd2 {[%clk 0:57:26]} 42. Bc1 
{[%clk 0:44:01]} Ra2 {[%clk 0:56:12]} 43. Bb1 {[%clk 0:37:05]} Ra1 
{[%clk 0:55:01]} 44. Bd3 {[%clk 0:35:57]} Rb8 {[%clk 0:51:38]} 45. Rc4 
{[%clk 0:32:48]} b2 {[%clk 0:51:12]} 46. Bxb2 {[%clk 0:31:13]} Rxb2 
{[%clk 0:50:54]} 47. Rxa4 {[%clk 0:31:10]} Rb3 {[%clk 0:50:42]} 48. Rd4 
{[%clk 0:30:32]} Rbxa3 {[%clk 0:50:20]} 49. Rd6 {[%clk 0:29:24]} R3a2 
{[%clk 0:48:20]} 50. Be2 {[%clk 0:28:41]} Rb2 {[%clk 0:46:34]} 51. Rd2 
{[%clk 0:28:09]} Ra3+ {[%clk 0:45:04]} 52. Rd3 {[%clk 0:27:04]} Raa2 
{[%clk 0:44:42]} 53. Bf3 {[%clk 0:26:48]} Rh2 {[%clk 0:44:24]} 54. g4 
{[%clk 0:23:23]} h4 {[%clk 0:42:36]} 55. f5 {[%clk 0:22:10]} gxf5 
{[%clk 0:41:19]} 56. gxf5 {[%clk 0:22:06]} exf5 {[%clk 0:41:05]} 57. Kf4 
{[%clk 0:22:01]} Rxh3 {[%clk 0:39:54]} 58. Kxf5 {[%clk 0:21:49]} Rg3 
{[%clk 0:38:20]} 59. Kf4 {[%clk 0:21:09]} Ra4+ {[%clk 0:37:48]} 60. Ke3 
{[%clk 0:21:03]} Rg5 {[%clk 0:36:45]} 61. Rd5 {[%clk 0:20:38]} h3 
{[%clk 0:35:39]} 62. Kf2 {[%clk 0:20:25]} Rf4 {[%clk 0:35:12]} 63. Ke3 
{[%clk 0:20:07]} Rff5 {[%clk 0:34:18]} 64. Kf2 {[%clk 0:19:06]} h2 
{[%clk 0:34:11]} 65. Rd1 {[%clk 0:19:01]} Rxf3+ {[%clk 0:33:41]} 66. Kxf3 
{[%clk 0:18:54]} Rg1 {[%clk 0:33:38]} 0-1

[Event "African Championship (W)"]
[Site "followchess.com"]
[Date "2021.05.25"]
[Round "7"]
[White "Wafa, Shahenda"]
[Black "Mongeli, Sasha"]
[Result "1-0"]
[WhiteElo "2145"]
[BlackElo "1553"]
[ECO "B17"]
[WhiteFed "EGY"]
[BlackFed "KEN"]
[FCGameId "1014556116"]
[WhiteFideId "10609962"]
[BlackFideId "10809090"]
[TimeControl "7200+30"]

1. e4 {[%clk 1:28:56]} c6 {[%clk 1:30:36]} 2. d4 {[%clk 1:29:18]} d5 
{[%clk 1:30:54]} 3. Nc3 {[%clk 1:29:34]} dxe4 {[%clk 1:31:09]} 4. Nxe4 
{[%clk 1:29:57]} Nd7 {[%clk 1:31:24]} 5. Ng5 {[%clk 1:30:12]} Ngf6 
{[%clk 1:31:01]} 6. Bd3 {[%clk 1:29:54]} e6 {[%clk 1:30:34]} 7. N1f3 
{[%clk 1:29:10]} h6 {[%clk 1:25:00]} 8. Ne4 {[%clk 1:28:05]} Nxe4 
{[%clk 1:24:06]} 9. Bxe4 {[%clk 1:28:29]} Nf6 {[%clk 1:24:05]} 10. Bd3 
{[%clk 1:28:53]} c5 {[%clk 1:18:44]} 11. O-O {[%clk 1:17:21]} cxd4 
{[%clk 1:14:09]} 12. Nxd4 {[%clk 1:16:06]} Bc5 {[%clk 1:13:34]} 13. Nb3 
{[%clk 1:11:48]} Bb6 {[%clk 1:11:09]} 14. Qf3 {[%clk 1:10:53]} Nd7 
{[%clk 0:57:42]} 15. Be4 {[%clk 1:02:59]} Ne5 {[%clk 0:54:46]} 16. Qe2 
{[%clk 0:58:36]} Qf6 {[%clk 0:50:34]} 17. Bd2 {[%clk 0:58:03]} Nd7 
{[%clk 0:36:22]} 18. Bc3 {[%clk 0:52:17]} e5 {[%clk 0:29:40]} 19. Bb4 
{[%clk 0:43:09]} Bd8 {[%clk 0:27:57]} 20. Rad1 {[%clk 0:32:43]} Be7 
{[%clk 0:23:27]} 21. Bc3 {[%clk 0:30:28]} O-O {[%clk 0:20:15]} 22. Na5 
{[%clk 0:30:31]} Nc5 {[%clk 0:14:15]} 23. Bxe5 {[%clk 0:27:37]} Qh4 
{[%clk 0:07:09]} 24. Bf3 {[%clk 0:26:32]} Qa4 {[%clk 0:05:46]} 25. Bc3 
{[%clk 0:22:58]} Bg5 {[%clk 0:03:43]} 26. Rfe1 {[%clk 0:19:26]} Qxa2 
{[%clk 0:00:43]} 27. Qe5 {[%clk 0:18:11]} Ne6 {[%clk 0:00:41]} 28. Ra1 
{[%clk 0:15:43]} 1-0

[Event "African Championship (W)"]
[Site "followchess.com"]
[Date "2021.05.24"]
[Round "6"]
[White "Charinda, Kudzanayi"]
[Black "Nassr, Lina"]
[Result "1/2-1/2"]
[WhiteElo "1702"]
[BlackElo "1960"]
[ECO "B41"]
[WhiteFed "ZIM"]
[BlackFed "ALG"]
[FCGameId "-1768352607"]
[WhiteFideId "11000538"]
[BlackFideId "7908075"]
[TimeControl "7200+30"]

1. e4 {[%clk 1:30:55]} c5 {[%clk 1:30:43]} 2. Nf3 {[%clk 1:31:01]} e6 
{[%clk 1:31:00]} 3. d4 {[%clk 1:30:45]} cxd4 {[%clk 1:31:22]} 4. Nxd4 
{[%clk 1:31:11]} a6 {[%clk 1:31:21]} 5. g3 {[%clk 1:28:27]} Nf6 {[%clk 1:25:37]} 
6. Bg2 {[%clk 1:27:45]} d6 {[%clk 1:22:25]} 7. Nc3 {[%clk 1:26:05]} Be7 
{[%clk 1:22:16]} 8. O-O {[%clk 1:18:18]} O-O {[%clk 1:22:07]} 9. Be3 
{[%clk 1:14:00]} Qc7 {[%clk 1:20:57]} 10. Re1 {[%clk 1:08:01]} Nc6 
{[%clk 1:14:30]} 11. Nxc6 {[%clk 1:05:29]} bxc6 {[%clk 1:13:59]} 12. Na4 
{[%clk 1:02:10]} Rb8 {[%clk 1:07:43]} 13. b3 {[%clk 1:02:12]} Bd7 
{[%clk 0:56:15]} 14. c4 {[%clk 1:02:16]} c5 {[%clk 0:55:22]} 15. Nc3 
{[%clk 0:59:37]} Bc6 {[%clk 0:51:53]} 16. h3 {[%clk 0:59:17]} Nd7 
{[%clk 0:44:58]} 17. Qc2 {[%clk 0:58:41]} Bf6 {[%clk 0:42:53]} 18. Rad1 
{[%clk 0:56:55]} Rfd8 {[%clk 0:39:25]} 19. Rd2 {[%clk 0:55:42]} Rb4 
{[%clk 0:33:43]} 20. Red1 {[%clk 0:54:29]} Nf8 {[%clk 0:29:49]} 21. f4 
{[%clk 0:53:14]} Rbb8 {[%clk 0:28:21]} 22. g4 {[%clk 0:44:24]} h6 
{[%clk 0:26:50]} 23. Ne2 {[%clk 0:37:29]} a5 {[%clk 0:24:28]} 24. Ng3 
{[%clk 0:37:07]} Bh4 {[%clk 0:24:21]} 25. Ne2 {[%clk 0:36:20]} a4 
{[%clk 0:22:43]} 26. Nc1 {[%clk 0:23:47]} Be7 {[%clk 0:19:56]} 27. Nd3 
{[%clk 0:22:40]} axb3 {[%clk 0:17:56]} 28. axb3 {[%clk 0:21:48]} Qb7 
{[%clk 0:18:15]} 29. Nc1 {[%clk 0:21:17]} Ng6 {[%clk 0:17:41]} 30. Re2 
{[%clk 0:17:21]} Nh4 {[%clk 0:17:08]} 31. Bh1 {[%clk 0:14:00]} f5 
{[%clk 0:13:43]} 32. Bf2 {[%clk 0:12:14]} Ng6 {[%clk 0:11:35]} 33. Bg3 
{[%clk 0:11:32]} Bh4 {[%clk 0:08:49]} 34. Kh2 {[%clk 0:08:44]} Qe7 
{[%clk 0:04:27]} 35. Qc3 {[%clk 0:07:36]} fxg4 {[%clk 0:03:26]} 36. hxg4 
{[%clk 0:06:49]} Rbc8 {[%clk 0:01:28]} 37. f5 {[%clk 0:06:06]} exf5 
{[%clk 0:00:55]} 38. exf5 {[%clk 0:05:43]} Bxg3+ {[%clk 0:00:50]} 39. Qxg3 
{[%clk 0:05:49]} Ne5 {[%clk 0:01:11]} 40. Bxc6 {[%clk 0:34:39]} Rxc6 
{[%clk 0:31:23]} 41. Nd3 {[%clk 0:33:32]} Qg5 {[%clk 0:20:22]} 42. Nxe5 
{[%clk 0:31:34]} dxe5 {[%clk 0:20:46]} 43. Rxd8+ {[%clk 0:31:06]} Qxd8 
{[%clk 0:21:11]} 44. Qxe5 {[%clk 0:25:08]} Qh4+ {[%clk 0:15:23]} 45. Kg1 
{[%clk 0:25:01]} Qxg4+ {[%clk 0:13:40]} 46. Rg2 {[%clk 0:25:11]} Qd1+ 
{[%clk 0:04:56]} 47. Kh2 {[%clk 0:17:30]} Qh5+ {[%clk 0:04:23]} 48. Kg1 
{[%clk 0:12:44]} Qd1+ {[%clk 0:04:01]} 49. Kh2 {[%clk 0:12:53]} Qh5+ 
{[%clk 0:02:12]} 50. Kg1 {[%clk 0:13:11]} Qd1+ {[%clk 0:02:12]} 1/2-1/2

[Event "African Championship (W)"]
[Site "followchess.com"]
[Date "2021.05.24"]
[Round "6"]
[White "Mwango , Lorita"]
[Black "Ogbiyoyo, Perpetual Eloho"]
[Result "1-0"]
[WhiteElo "1912"]
[BlackElo "1880"]
[ECO "A45"]
[WhiteFed "ZAM"]
[BlackFed "NGR"]
[FCGameId "1246711912"]
[WhiteFideId "8700478"]
[BlackFideId "8509050"]
[TimeControl "7200+30"]

1. d4 {[%clk 1:30:57]} Nf6 {[%clk 1:30:37]} 2. Bf4 {[%clk 1:30:34]} c5 
{[%clk 1:30:47]} 3. dxc5 {[%clk 1:25:33]} Na6 {[%clk 1:30:54]} 4. Nf3 
{[%clk 1:25:35]} Nxc5 {[%clk 1:27:14]} 5. c3 {[%clk 1:25:55]} e6 
{[%clk 1:26:30]} 6. e3 {[%clk 1:25:09]} Qb6 {[%clk 1:24:17]} 7. Qc2 
{[%clk 1:24:36]} d5 {[%clk 1:24:30]} 8. Nbd2 {[%clk 1:24:39]} Be7 
{[%clk 1:23:44]} 9. Be2 {[%clk 1:24:59]} O-O {[%clk 1:23:20]} 10. h3 
{[%clk 1:24:59]} Bd7 {[%clk 1:23:24]} 11. O-O {[%clk 1:25:15]} Rac8 
{[%clk 1:23:26]} 12. Bh2 {[%clk 1:12:41]} Ba4 {[%clk 1:21:39]} 13. Qb1 
{[%clk 1:12:13]} Nce4 {[%clk 1:19:10]} 14. Nxe4 Nxe4 {[%clk 1:18:47]} 15. Bd3 
{[%clk 1:09:53]} f5 {[%clk 1:16:57]} 16. Be5 {[%clk 1:08:24]} Bf6 
{[%clk 1:12:47]} 17. Qc1 {[%clk 1:07:15]} Ng5 {[%clk 1:03:16]} 18. Nxg5 
{[%clk 1:07:25]} Bxe5 {[%clk 1:03:29]} 19. Nf3 {[%clk 1:07:33]} Bb8 
{[%clk 1:03:23]} 20. Nd4 {[%clk 1:06:13]} f4 {[%clk 1:00:35]} 21. e4 
{[%clk 1:02:17]} Qd6 {[%clk 0:49:20]} 22. Nf3 {[%clk 0:53:58]} d4 
{[%clk 0:47:21]} 23. e5 {[%clk 0:53:21]} Qd7 {[%clk 0:41:33]} 24. Nxd4 
{[%clk 0:53:03]} Bxe5 {[%clk 0:41:20]} 25. Nf3 {[%clk 0:53:24]} Bb8 
{[%clk 0:37:00]} 26. Be4 {[%clk 0:53:00]} Rcd8 {[%clk 0:30:12]} 27. Re1 
{[%clk 0:51:41]} e5 {[%clk 0:26:26]} 28. b3 {[%clk 0:51:42]} Bb5 
{[%clk 0:26:21]} 29. c4 {[%clk 0:50:51]} Ba6 {[%clk 0:26:43]} 30. Qc2 
{[%clk 0:50:54]} g6 {[%clk 0:26:29]} 31. Bd5+ {[%clk 0:50:27]} Kg7 32. Nxe5 Bxe5 
{[%clk 0:24:22]} 33. Rxe5 {[%clk 0:50:46]} Qc7 {[%clk 0:24:36]} 34. Rae1 
{[%clk 0:50:22]} Rd7 {[%clk 0:25:00]} 35. Qc3 {[%clk 0:48:25]} Kh6 
{[%clk 0:24:38]} 36. Qf3 {[%clk 0:45:52]} Qd8 {[%clk 0:22:31]} 37. Qg4 
{[%clk 0:45:26]} b6 {[%clk 0:21:01]} 38. h4 {[%clk 0:45:49]} Bc8 
{[%clk 0:20:16]} 39. Qg5+ {[%clk 0:33:53]} Qxg5 40. hxg5+ Kg7 {[%clk 0:19:03]} 
41. Re7+ {[%clk 0:34:15]} Kh8 {[%clk 0:19:14]} 42. f3 {[%clk 1:03:17]} Rfd8 
{[%clk 0:48:00]} 43. Re8+ {[%clk 1:03:20]} Kg7 {[%clk 0:47:34]} 44. R1e7+ 
{[%clk 1:03:38]} Rxe7 45. Rxe7+ {[%clk 1:03:38]} 1-0

[Event "African Championship (W)"]
[Site "followchess.com"]
[Date "2021.05.24"]
[Round "6"]
[White "February, Jesse Nikki"]
[Black "Wafa, Shahenda"]
[Result "1-0"]
[WhiteElo "1824"]
[BlackElo "2145"]
[ECO "B32"]
[WhiteFed "RSA"]
[BlackFed "EGY"]
[FCGameId "1505393971"]
[WhiteFideId "14312336"]
[BlackFideId "10609962"]
[TimeControl "7200+30"]

1. e4 {[%clk 1:30:48]} c5 {[%clk 1:30:53]} 2. Nf3 {[%clk 1:30:23]} Nc6 
{[%clk 1:31:16]} 3. d4 {[%clk 1:30:09]} cxd4 {[%clk 1:31:39]} 4. Nxd4 
{[%clk 1:30:30]} e5 {[%clk 1:32:02]} 5. Nb5 {[%clk 1:29:47]} d6 {[%clk 1:31:54]} 
6. N1c3 {[%clk 1:29:18]} a6 {[%clk 1:31:58]} 7. Na3 {[%clk 1:29:32]} Be7 
{[%clk 1:30:53]} 8. Nd5 {[%clk 1:26:50]} Nf6 {[%clk 1:29:36]} 9. Nxf6+ 
{[%clk 1:22:00]} Bxf6 {[%clk 1:27:37]} 10. Nc4 {[%clk 1:18:53]} Be7 
{[%clk 1:23:33]} 11. Be3 {[%clk 1:14:17]} b5 {[%clk 1:12:57]} 12. Nb6 
{[%clk 1:08:04]} Rb8 {[%clk 1:13:19]} 13. Nxc8 {[%clk 1:07:45]} Qxc8 
{[%clk 1:09:40]} 14. c3 {[%clk 1:03:58]} O-O {[%clk 1:09:48]} 15. Bd3 
{[%clk 0:57:06]} Na5 {[%clk 1:05:19]} 16. O-O {[%clk 0:56:17]} Nc4 
{[%clk 1:05:05]} 17. Bc1 {[%clk 0:54:04]} Rd8 {[%clk 1:04:00]} 18. a4 
{[%clk 0:49:28]} g6 {[%clk 0:55:00]} 19. axb5 {[%clk 0:48:15]} axb5 
{[%clk 0:55:18]} 20. Ra7 {[%clk 0:44:25]} Rb7 {[%clk 0:41:29]} 21. Rxb7 
{[%clk 0:43:02]} Qxb7 {[%clk 0:41:54]} 22. b3 {[%clk 0:35:22]} Na5 
{[%clk 0:39:34]} 23. b4 {[%clk 0:35:31]} Nc6 {[%clk 0:28:54]} 24. Qe2 
{[%clk 0:33:44]} d5 {[%clk 0:22:22]} 25. exd5 {[%clk 0:24:56]} Rxd5 
{[%clk 0:22:25]} 26. Be4 {[%clk 0:25:05]} Rd6 {[%clk 0:20:28]} 27. Bh6 
{[%clk 0:17:22]} f5 {[%clk 0:12:22]} 28. Qa2+ {[%clk 0:17:20]} Kh8 
{[%clk 0:09:53]} 29. Qf7 {[%clk 0:17:37]} 1-0